Workbook

Sheet Estimates
A1: Hall D Computing Requirements Estimates
A3: Year | B3: FY14 | C3: FY15 | D3: FY16 | E3: Sum
A5: CPU Power
A7: requirement
A8: computing capacity (cores) | B8: 1000 | C8: 5000 | D8: 10000
A10: cost
A11: cores purchased | B11: =B8 -> 1000 | C11: =C8-B11 -> 4000 | D11: =D8-C11-B11 -> 5000
A12: cost per core | B12: =B46/B49 -> 113.137085 | C12: =B12/B49 ->  | D12: =C12/B49 -> 
A13: cost per year | B13: =B11*B12 ->  | C13: =C11*C12 ->  | D13: =D11*D12 ->  | E13: =SUM(B13:D13) -> 
A15: Disk Space
A17: requirement
A18: volatile disk capacity (TB) | B18: 50 | C18: 150 | D18: 300
A19: work disk capacity(TB) | B19: 100 | C19: 570 | D19: =C19+1100 -> 1670
A20: total disk capacity (volatile+work, TB) | B20: =B18+B19 -> 150 | C20: =C18+C19 -> 720 | D20: =D18+D19 -> 1970
A22: cost
A23: disk purchased (TB) | B23: =B20 -> 150 | C23: =C20-B23 -> 570 | D23: =D20-C23-B23 -> 1250
A24: cost per TB | B24: =B48/B49 -> 176.7766953 | C24: =B24/B49 ->  | D24: =C24/B49 -> 
A25: cost per year | B25: =B23*B24 ->  | C25: =C23*C24 ->  | D25: =D23*D24 ->  | E25: =SUM(B25:D25) -> 
A27: Tape
A29: requirement
A30: data to tape (TB) | B30: 800 | C30: 4000 | D30: 8000
A32: cost
A33: tapes purchased | B33: =B30 -> 800 | C33: =C30-B33 -> 3200 | D33: =D30-C33-B33 -> 4000
A34: cost per TB | B34: =B47/B49 -> 17.67766953 | C34: =B34/B49 ->  | D34: =C34/B49 -> 
A35: cost per year | B35: =B33*B34 ->  | C35: =C33*C34 ->  | D35: =D33*D34 ->  | E35: =SUM(B35:D35) -> 
A37: Totals
A39: total cost per year | B39: =B13+B25+B35 ->  | C39: =C13+C25+C35 ->  | D39: =D13+D25+D35 ->  | E39: =E13+E25+E35 -> 
A44: Assumptions/Parameters
A46: FY 13 cost per core | B46: 160
A47: FY 13 cost per TB, tape | B47: 25
A48: FY 13 cost per TB, disk | B48: 250
A49: factor of decrease per year | B49: =SQRT(2) -> 1.414213562
A51: MMI, May 28, 2013 | B51: computing_requirements_estimates_v2.xlsx
